bitfinex/quotes_ETHUSD_20250319
["timestamp","ask_amount","ask_price","bid_price","bid_amount"]
[1742352710889,11.45283814,1935.9,1935.8,0.1555787]
[1742352711176,5.16649,1935.6,1935.3,11.005]
[1742352711358,3.62095262,1935.4,1935.2,21.953]
[1742352711558,3.62095262,1935.3,1935.2,21.953]
[1742352711763,3.62095262,1935.3,1935.2,24.953]
[1742352712349,3.62095262,1935.4,1935.2,31.15347784]
[1742352712774,3.62095262,1935.4,1935.2,26.46962757]
[1742352713704,3.62095262,1935.4,1935.2,25.98605784]
[1742352715811,3.62095262,1935.3,1935.2,25.98605784]
[1742352716030,3.62095262,1935.3,1935.2,24.953]
[1742352717573,3.62095262,1935.3,1935.2,25.43646809]
[1742352717774,3.62095262,1935.3,1935.2,25.91987587]
[1742352719005,3.62095262,1935.3,1935.2,25.43646809]
[1742352720006,3.62095262,1935.3,1935.2,24.953]
[1742352720913,3.62095262,1935.3,1935.2,7.865]
[1742352723226,3.62095262,1935.3,1935.2,8.02165885]
[1742352725698,3.62095262,1935.4,1935.2,13.18892885]
[1742352725920,3.62095262,1935.5,1935.2,18.53526885]
[1742352727203,5.16639,1935.6,1935.2,13.36799885]
[1742352727204,2.1715635,1935.3,1935.2,13.36799885]
[1742352727831,2.1715635,1935.3,1935.2,8.02165885]
[1742352728374,2.1715635,1935.3,1935.2,8.50405857]
[1742352729468,2.1715635,1935.3,1935.2,8.02165885]
[1742352740169,2.1715635,1935.3,1935.2,8.50563145]
[1742352741292,2.1715635,1935.3,1935.2,8.89308581]
[1742352742908,2.1715635,1935.3,1935.2,4.02808581]
[1742352743201,8.40347985,1935.3,1935.2,4.02808581]
[1742352743404,8.40347985,1935.3,1935.2,3.64063145]
[1742352743557,8.40347985,1935.3,1935.2,3.15665885]
[1742352744365,8.40347985,1935.3,1935.2,0.15665885]
[1742352744895,5.93459,1935.1,1935.0,3.0]
[1742352745093,8.1061535,1935.1,1935.0,3.0]
[1742352745392,8.72305001,1935.1,1935.0,3.0]
[1742352745789,13.89098001,1935.1,1934.7,3.0]
[1742352745993,2.1715635,1934.8,1934.7,7.865]
[1742352747012,2.1715635,1934.8,1934.7,8.90099566]
[1742352747408,2.1715635,1934.8,1934.7,9.28839923]
[1742352749300,2.1715635,1934.8,1934.7,4.42339923]
[1742352749509,2.9384635,1934.8,1934.7,0.38740357]
[1742352749708,2.9384635,1934.8,1934.7,3.38740357]
[1742352749912,2.9384635,1934.8,1934.7,3.0]
[1742352750094,2.1715635,1934.8,1934.7,3.0]
[1742352753183,2.1715635,1934.8,1934.7,3.15842849]
[1742352760909,2.1715635,1934.8,1934.7,0.15842849]
[1742352761310,2.1715635,1934.8,1934.6,3.0]
[1742352761521,2.1715635,1934.7,1934.6,3.0]
[1742352763534,2.9712635,1934.7,1934.6,3.0]
[1742352763730,8.95400085,1934.7,1934.5,4.866]
[1742352763930,2.1715635,1934.6,1934.5,7.866]
[1742352765333,2.1715635,1934.6,1934.5,13.03529]
[1742352765649,2.1715635,1934.6,1934.5,7.866]
[1742352766542,2.12308223,1934.6,1934.5,7.866]
[1742352767451,2.12308223,1934.6,1934.5,13.03529]
[1742352767747,2.1715635,1934.7,1934.6,5.16892]
[1742352768255,2.1715635,1934.7,1934.6,5.32766677]
[1742352769122,2.1715635,1934.7,1934.6,0.15874677]
[1742352769622,2.1715635,1934.7,1934.6,3.15874677]
[1742352770744,2.9712635,1934.7,1934.6,3.15874677]
[1742352778941,2.1715635,1934.7,1934.6,3.15874677]
[1742352779573,0.61689651,1935.1,1934.6,3.15874677]
[1742352779574,0.8323,1935.1,1934.8,5.16842]
[1742352779772,2.1715635,1934.9,1934.8,5.16842]
[1742352780944,0.8323,1935.3,1934.9,13.33623]
[1742352781154,0.8323,1935.3,1935.0,5.16794]
[1742352781471,0.8323,1935.3,1934.9,14.04941416]
[1742352782181,2.1715635,1935.0,1934.9,8.88133416]
[1742352782356,2.1715635,1935.0,1934.9,3.53422416]
[1742352783074,2.1715635,1935.0,1934.9,8.70244416]
[1742352783377,2.1715635,1935.0,1934.9,8.86072498]
[1742352783743,2.1715635,1935.0,1934.9,3.69250498]
[1742352783945,2.1715635,1935.0,1934.9,3.15828082]
[1742352788285,7.3395135,1935.0,1934.9,3.15828082]
[1742352788496,2.1715635,1935.0,1934.9,3.15828082]
[1742352789073,7.3395135,1935.0,1934.9,3.15828082]
[1742352789282,2.1715635,1935.0,1934.9,3.15828082]
[1742352789768,7.3395135,1935.0,1934.9,3.15828082]
[1742352790695,11.63093835,1935.0,1934.9,0.15828082]
[1742352790897,5.16823,1934.9,1934.6,4.03888433]
[1742352791082,2.1715635,1934.7,1934.6,4.03888433]
[1742352793191,2.1715635,1934.7,1934.6,9.20790433]
[1742352793401,2.1715635,1934.8,1934.6,9.20790433]
[1742352793614,2.1715635,1934.9,1934.7,0.92079043]
[1742352793891,2.1715635,1934.8,1934.7,0.92079043]
[1742352798363,2.1715635,1934.8,1934.7,1.07921892]
[1742352798563,2.1715635,1934.8,1934.7,0.15842849]
[1742352798869,2.1715635,1934.8,1934.6,9.20770433]
[1742352799064,2.1715635,1934.8,1934.7,0.15842849]
[1742352799267,2.1715635,1934.9,1934.8,3.0]
[1742352799781,2.1715635,1934.9,1934.8,0.1583308]
[1742352803196,2.1715635,1934.9,1934.6,9.38698433]
[1742352803404,5.16796,1935.0,1934.8,0.1583308]
[1742352803602,5.95908,1935.2,1934.7,5.32723599]
[1742352803809,5.16775,1935.1,1934.9,0.15815562]
[1742352803980,5.16775,1935.1,1934.8,3.1583308]
[1742352804178,5.16775,1935.1,1935.0,0.15798047]
[1742352804508,5.16775,1935.1,1934.8,3.0]
[1742352804804,2.1715635,1934.9,1934.8,3.0]
[1742352810210,5.16799,1935.0,1934.8,3.0]
[1742352810410,2.1715635,1934.9,1934.8,3.0]
[1742352812494,7.3397835,1934.9,1934.6,4.21798433]
[1742352812689,2.1715635,1934.7,1934.6,4.03888433]
[1742352813222,2.1715635,1934.8,1934.6,4.03888433]
[1742352813389,2.1715635,1934.8,1934.6,4.19752377]
[1742352813590,2.1715635,1934.7,1934.6,4.19752377]
[1742352813920,2.1715635,1934.8,1934.6,4.19752377]
[1742352814534,2.1715635,1934.8,1934.6,4.5856648]
[1742352814914,2.1715635,1934.8,1934.6,9.7546248]
[1742352815491,2.1715635,1934.8,1934.7,0.38814103]
[1742352815687,2.1715635,1934.8,1934.7,0.54660527]
[1742352815889,2.1715635,1935.0,1934.8,3.0]
[1742352816309,2.1715635,1934.9,1934.8,3.0]
[1742352816510,2.1715635,1934.9,1934.8,3.8736001]
[1742352817510,2.1715635,1934.9,1934.8,3.0]
[1742352818123,2.1715635,1934.9,1934.8,3.38802394]
[1742352821845,5.99637,1935.2,1934.8,5.16837]
[1742352822139,2.1715635,1935.0,1934.8,8.16837]
[1742352823038,2.1715635,1934.9,1934.8,3.0]
[1742352824212,2.1715635,1934.9,1934.8,3.38806359]
[1742352825438,2.1715635,1934.9,1934.8,8.16849]
[1742352826640,2.1715635,1934.9,1934.8,3.0]
[1742352827748,3.0004635,1934.9,1934.8,3.0]
[1742352828046,3.0004635,1934.9,1934.8,3.38809682]
[1742352828417,2.1715635,1934.9,1934.8,3.54634415]
[1742352836555,2.1715635,1934.9,1934.8,3.15824733]
[1742352837146,2.1715635,1935.0,1934.8,3.15824733]
[1742352839961,2.1715635,1934.9,1934.8,3.15824733]
[1742352840163,2.1715635,1935.0,1934.8,3.15824733]
[1742352844068,2.1715635,1934.9,1934.8,3.15824733]
[1742352845568,8.94483715,1934.9,1934.8,0.54656673]
[1742352845728,8.88023685,1934.9,1934.8,0.54656673]
[1742352846541,8.88023685,1934.9,1934.8,0.15824733]
[1742352846747,5.16862,1934.8,1934.6,3.0]
[1742352846957,2.1715635,1934.7,1934.6,3.0]
[1742352847342,7.3403235,1934.7,1934.6,3.0]
[1742352847733,8.1576235,1934.7,1934.4,4.04821411]
[1742352847933,2.1715635,1934.5,1934.4,4.04821411]
[1742352848766,2.1715635,1934.5,1934.4,1.04821411]
[1742352849267,2.1715635,1934.5,1934.4,1.43627462]
[1742352850565,2.1715635,1934.5,1934.4,1.04821411]
[1742352850767,5.16849,1934.8,1934.4,1.04821411]
[1742352850768,2.1715635,1934.6,1934.5,3.0]
[1742352850970,2.1715635,1934.6,1934.5,3.93967641]
[1742352853274,2.1715635,1934.6,1934.5,9.10896641]
[1742352853640,2.1715635,1934.7,1934.5,9.10896641]
[1742352854767,2.1715635,1934.6,1934.5,9.10896641]
[1742352855076,2.1715635,1934.6,1934.5,3.93967641]
[1742352855370,2.1715635,1934.6,1934.5,3.0]
[1742352857374,2.1715635,1934.9,1934.7,3.0]
[1742352858162,2.1715635,1934.9,1934.8,0.15852158]
[1742352859041,2.1715635,1934.9,1934.8,8.32701158]
[1742352860275,2.1715635,1934.9,1934.8,3.15852158]
[1742352860479,2.1715635,1934.9,1934.8,8.32701158]
[1742352860768,2.1715635,1935.0,1934.8,8.32701158]
[1742352861157,2.1715635,1935.1,1934.9,8.16822]
[1742352861369,2.1715635,1935.0,1934.9,8.16822]
[1742352862340,2.1715635,1935.2,1935.1,8.16769]
[1742352862547,2.1715635,1935.3,1935.2,3.0]
[1742352862946,5.16622,1935.7,1935.2,8.16727]
[1742352862947,5.98542,1935.7,1935.2,8.16727]
[1742352863140,2.1715635,1935.5,1935.3,5.34606]
[1742352863897,2.1715635,1935.5,1935.4,5.16672]
[1742352864095,5.98502,1935.8,1935.4,5.16672]
[1742352864096,2.1715635,1935.6,1935.4,5.16672]
[1742352864790,2.1715635,1935.6,1935.4,6.217998]
[1742352864995,2.1715635,1935.5,1935.4,9.217998]
[1742352865299,3.6182566,1935.6,1935.4,9.217998]
[1742352866068,3.6182566,1935.6,1935.4,4.051278]
[1742352866268,3.6182566,1935.5,1935.4,3.0]
[1742352867701,3.6182566,1935.5,1935.4,4.02320281]
[1742352869500,3.6182566,1935.6,1935.4,4.02320281]
[1742352873134,3.6182566,1935.6,1935.5,0.15633016]
[1742352876320,8.7846066,1935.6,1935.5,0.15633016]
[1742352876487,3.6182566,1935.6,1935.5,0.15633016]
[1742352885297,2.17117101,1935.6,1935.5,0.15633016]
[1742352886449,2.17117101,1935.6,1935.5,3.15633016]
[1742352905517,0.01,1935.9,1935.7,5.16598]
[1742352905809,0.01,1935.9,1935.8,8.32160126]
[1742352906101,2.18117101,1935.9,1935.8,3.15578126]
[1742352906303,2.99437101,1935.9,1935.8,3.15578126]
[1742352906517,2.99437101,1935.9,1935.8,0.15578126]
[1742352906809,2.99437101,1935.9,1935.6,8.16633]
[1742352907014,2.17117101,1935.8,1935.7,0.816633]
[1742352908474,2.17117101,1935.8,1935.6,3.77478733]
[1742352908674,2.17117101,1935.7,1935.6,3.77478733]
[1742352909393,2.17117101,1935.7,1935.6,4.80886111]
[1742352909584,2.17117101,1935.7,1935.6,4.03407378]
[1742352912316,5.16647,1935.6,1935.5,4.857]
[1742352912620,2.17117101,1935.6,1935.5,7.857]
[1742352917809,7.33752101,1935.6,1935.5,7.857]
[1742352918309,7.33752101,1935.6,1935.5,8.00759193]
[1742352919110,2.17117101,1935.6,1935.5,8.00759193]
[1742352926884,7.33752101,1935.6,1935.5,8.00759193]
[1742352928113,2.17117101,1935.6,1935.5,8.00759193]
[1742352928433,9.50869202,1935.6,1935.5,3.15059193]
[1742352928627,11.10757412,1935.6,1935.5,0.15059193]
[1742352928985,5.16699,1935.4,1935.2,3.77545261]
[1742352929186,2.17117101,1935.3,1935.2,3.77545261]
[1742352930000,7.33832101,1935.3,1935.2,3.77545261]
[1742352930936,7.33832101,1935.3,1935.2,3.0]
[1742352931629,8.66707211,1935.3,1935.2,3.0]
[1742352933190,2.17117101,1935.3,1935.2,3.15132568]
[1742352935911,2.17117101,1935.3,1935.2,0.15132568]
[1742352936095,8.12052101,1935.3,1935.2,0.15132568]
[1742352936299,13.28791101,1935.3,1935.0,5.90903191]
[1742352936528,2.17117101,1935.1,1935.0,8.90903191]
[1742352937131,3.6203793,1935.1,1935.0,8.90903191]
[1742352938832,8.7875293,1935.3,1935.0,8.90903191]
[1742352939042,8.7875293,1935.3,1935.0,9.08813191]
[1742352944038,3.6203793,1935.3,1935.0,9.08813191]
[1742352944836,0.8276,1935.8,1935.2,0.1791]
[1742352945009,0.8276,1935.8,1935.5,3.0]
[1742352945010,4.4479793,1935.8,1935.5,3.0]
[1742352945207,0.01,1935.9,1935.5,8.34569]
[1742352945431,3.6303793,1935.9,1935.5,8.34569]
[1742352945839,3.6203793,1935.7,1935.5,3.1791]
[1742352946039,3.6203793,1935.7,1935.6,0.15072071]
[1742352946903,3.6203793,1935.7,1935.6,1.17726497]
[1742352947135,8.7959393,1935.9,1935.6,1.17726497]
[1742352947433,3.6203793,1935.7,1935.6,1.17726497]
[1742352953243,0.01,1935.9,1935.6,6.34343497]
[1742352953514,0.01,1935.9,1935.7,5.8003035]
[1742352953651,0.01,1935.9,1935.8,8.16582]
[1742352953844,0.01,1935.9,1935.8,8.31600599]
[1742352954626,0.01,1935.9,1935.8,13.17100599]
[1742352955537,0.01,1935.9,1935.8,13.35010599]
[1742352955734,0.01,1935.9,1935.8,14.56938533]
[1742352958761,0.01,1935.9,1935.8,15.11938533]
[1742352959268,0.01,1935.9,1935.8,21.25938533]
[1742352963168,0.01,1935.9,1935.8,24.87976463]
[1742352965270,0.01,1935.9,1935.8,30.33076463]
[1742352966946,1e-05,1935.9,1935.8,30.33076463]
[1742352967347,4.3938793,1936.9,1936.1,0.1791]
[1742352967553,4.3938793,1936.9,1936.7,5.16341]
[1742352967973,4.3938793,1936.9,1936.8,0.14751385]
[1742352969058,4.3938793,1936.9,1936.6,13.01664]
[1742352969271,4.3938793,1936.9,1936.8,0.14751385]
[1742352969455,4.3938793,1936.9,1936.6,13.01664]
[1742352969656,4.3938793,1936.9,1936.8,0.14751385]
[1742352969868,4.3938793,1936.9,1936.7,5.16338]
[1742352970078,4.3938793,1936.9,1936.8,0.14751385]
[1742352971277,4.3938793,1936.9,1936.8,3.14751385]
[1742352974583,4.87096723,1936.9,1936.8,3.14751385]
[1742352974770,13.65422653,1936.9,1936.8,0.14751385]
[1742352974977,10.03384723,1936.9,1936.8,0.14751385]
[1742352975168,5.16327,1936.8,1936.5,3.0]
[1742352975369,3.6203793,1936.6,1936.5,3.0]
[1742352975765,4.4315793,1936.6,1936.5,3.0]
[1742352976099,4.4315793,1936.6,1936.4,4.06020928]
[1742352977767,3.6203793,1936.5,1936.4,4.06020928]
[1742352977966,3.6203793,1936.5,1936.4,9.22442928]
[1742352978402,3.6203793,1936.5,1936.4,9.37197599]
[1742352978875,3.6203793,1936.5,1936.4,4.20775599]
[1742352982601,3.6203793,1936.5,1936.4,1.20775599]
[1742352982791,4.57990823,1936.5,1936.4,0.14754671]
[1742352982992,10.58490786,1936.5,1936.4,0.14754671]
[1742352983299,0.7765,1936.4,1936.1,12.01887878]
[1742352983540,0.7765,1936.4,1936.2,3.0]
[1742352984302,5.94074,1936.4,1936.2,3.0]
[1742352986194,3.6203793,1936.3,1936.2,3.0]
[1742352990393,4.3968793,1936.3,1936.1,3.0]
[1742352991424,3.6203793,1936.2,1936.1,3.0]
[1742352993325,3.6203793,1936.2,1936.1,3.1488273]
[1742352994419,3.6203793,1936.2,1936.1,8.3138473]
[1742352995625,3.6203793,1936.2,1936.1,3.1488273]
[1742353001730,4.4394793,1936.2,1936.1,3.1488273]
[1742353002034,9.6042293,1936.2,1936.1,3.1488273]
[1742353002635,4.4394793,1936.2,1936.1,3.1488273]
[1742353005140,5.15951114,1936.2,1936.1,3.1488273]
[1742353006114,5.15951114,1936.2,1936.1,0.1488273]
[1742353006444,10.32426114,1936.2,1936.1,0.1488273]
[1742353009035,5.15951114,1936.2,1936.1,0.1488273]
[1742353011444,10.32426114,1936.2,1936.1,0.1488273]
[1742353017459,11.87314025,1936.2,1936.1,0.1488273]
[1742353018820,10.32426114,1936.2,1936.1,0.1488273]
[1742353019447,4.34041114,1936.2,1936.1,0.1488273]
[1742353019648,7.33495557,1936.2,1936.1,0.1488273]
[1742353020528,2.17020557,1936.2,1936.1,0.1488273]
[1742353021360,3.61650044,1936.2,1936.1,0.1488273]
[1742353027572,3.61650044,1936.2,1936.1,9.14525603]
[1742353027872,3.61650044,1936.2,1936.1,9.32435603]
[1742353031296,5.92598,1936.5,1936.3,3.0]
[1742353031297,3.61650044,1936.4,1936.3,3.0]
[1742353031495,3.61650044,1936.4,1936.3,3.14860247]
[1742353031790,3.61650044,1936.4,1936.3,8.31308247]
[1742353032296,3.61650044,1936.4,1936.3,9.33529658]
[1742353033367,3.61650044,1936.5,1936.4,5.16415]
[1742353033798,3.61650044,1936.5,1936.4,0.14842757]
[1742353034095,3.61650044,1936.5,1936.3,14.21579411]
[1742353034297,3.61650044,1936.4,1936.3,14.21579411]
[1742353035175,3.61650044,1936.4,1936.3,15.26541232]
[1742353035564,0.8213,1936.7,1936.5,3.0]
[1742353035866,3.61650044,1936.6,1936.5,3.0]
[1742353036096,3.61650044,1936.6,1936.5,3.816421]
[1742353036768,3.61650044,1936.6,1936.5,3.0]
[1742353038293,3.61650044,1936.6,1936.5,3.14785977]
[1742353043209,2.16933742,1936.6,1936.5,3.14785977]
[1742353044354,8.12801742,1936.6,1936.5,0.14785977]
[1742353044533,11.11661114,1936.6,1936.5,0.14785977]
[1742353044831,0.795,1936.3,1936.2,3.0]
[1742353045033,2.96433742,1936.3,1936.2,3.0]
[1742353045622,5.13367484,1936.3,1936.2,3.0]
[1742353045938,2.96433742,1936.3,1936.2,3.0]
[1742353046934,2.16933742,1936.3,1936.2,3.0]
[1742353047132,3.61628833,1936.3,1936.2,3.0]
[1742353048692,3.61628833,1936.4,1936.2,9.08364831]
[1742353048896,3.61628833,1936.5,1936.3,5.16422]
[1742353049143,3.61628833,1936.5,1936.4,5.16422]
[1742353049351,3.61628833,1936.6,1936.4,6.09894453]
[1742353049647,3.61628833,1936.5,1936.4,6.09894453]
[1742353049801,3.61628833,1936.5,1936.4,0.93472453]
[1742353051471,3.61628833,1936.5,1936.4,6.09894453]
[1742353051779,3.61628833,1936.6,1936.5,8.16395]
[1742353051961,3.61628833,1936.6,1936.5,9.08284831]
[1742353052333,3.61628833,1936.6,1936.5,3.91889831]
[1742353053181,3.61628833,1936.6,1936.5,9.08284831]
[1742353053363,3.61628833,1936.6,1936.5,9.2308093]
[1742353054174,0.795,1936.8,1936.5,9.2308093]
[1742353054358,0.795,1936.8,1936.6,0.92308093]
[1742353054564,0.795,1936.8,1936.7,0.14761127]
[1742353054763,0.795,1937.0,1936.7,5.31090127]
[1742353054992,0.795,1937.0,1936.7,5.16329]
[1742353055140,0.795,1937.0,1936.8,0.14743645]
[1742353056179,3.61628833,1936.9,1936.8,0.14743645]
[1742353056680,3.68082581,1936.9,1936.6,5.16352]
[1742353056883,3.61628833,1936.7,1936.6,8.16352]
[1742353057031,3.61628833,1936.7,1936.6,3.0]
[1742353057375,3.61628833,1936.7,1936.6,8.16368]
[1742353060811,3.61628833,1936.7,1936.6,3.0]
[1742353060976,3.61628833,1936.7,1936.6,8.16368]
[1742353061501,3.61628833,1936.7,1936.6,8.31132326]
[1742353065917,3.61628833,1936.8,1936.7,8.16315]
[1742353066212,3.61628833,1936.8,1936.7,8.31061842]
[1742353067233,3.61628833,1936.8,1936.7,3.14746842]
[1742353067234,2.16863937,1936.8,1936.7,3.14746842]
[1742353067608,4.33727874,1936.8,1936.7,3.14746842]
[1742353068035,2.16863937,1936.8,1936.7,3.14746842]
[1742353068408,4.33727874,1936.8,1936.7,3.14746842]
[1742353076961,2.16863937,1936.8,1936.7,3.14746842]
[1742353077856,2.16863937,1936.8,1936.7,8.31088842]
[1742353078867,4.33727874,1936.8,1936.7,3.14746842]
[1742353079172,2.16863937,1936.8,1936.7,3.14746842]
[1742353079770,2.16863937,1936.8,1936.7,8.31088842]
[1742353080158,4.33727874,1936.8,1936.7,3.14746842]
[1742353080958,2.16863937,1936.8,1936.7,3.14746842]
[1742353081163,4.33727874,1936.8,1936.7,3.14746842]
[1742353083780,2.16863937,1936.8,1936.7,3.14746842]
[1742353093207,2.16863937,1936.8,1936.7,3.63250026]
[1742353094904,2.16863937,1936.8,1936.7,4.11755388]
[1742353096006,2.16863937,1936.8,1936.7,3.63250026]
[1742353097174,2.16863937,1936.8,1936.7,3.14746842]
[1742353098803,2.0758478,1936.8,1936.7,3.14746842]
[1742353098976,2.16863937,1936.8,1936.7,3.14746842]
[1742353099308,2.16863937,1936.8,1936.7,3.63259212]
[1742353099898,2.16863937,1936.8,1936.7,4.11772236]
[1742353100715,4.33727874,1936.8,1936.7,4.11772236]
[1742353101275,2.16863937,1936.8,1936.7,4.11772236]
[1742353110449,2.16863937,1936.8,1936.7,5.0458506]
[1742353111313,2.16863937,1936.8,1936.7,10.2092706]
[1742353112148,0.38665796,1937.6,1936.7,10.2092706]
[1742353112149,0.826,1937.6,1937.1,5.16218]
[1742353112348,5.9865,1937.8,1937.4,5.16134]
[1742353112521,2.16863937,1937.5,1937.4,5.16155]
[1742353112719,2.16863937,1937.5,1937.4,8.16155]
[1742353113226,2.16863937,1937.5,1937.4,8.30754503]
[1742353113425,2.16863937,1937.5,1937.4,3.14599503]
[1742353113627,2.16863937,1937.5,1937.4,3.99466253]
[1742353113821,2.16863937,1937.5,1937.4,3.14599503]
[1742353114048,2.16863937,1937.5,1937.4,3.63112527]
[1742353115160,2.16863937,1937.5,1937.4,3.14599503]
[1742353121565,7.3944497,1937.5,1937.4,3.14599503]
[1742353121765,10.26806874,1937.5,1937.4,0.14599503]
[1742353121970,5.1617,1937.4,1937.2,3.0]
[1742353122169,7.33048937,1937.3,1937.1,6.13999]
[1742353122338,2.93813937,1937.2,1937.1,6.13999]
[1742353122539,2.93813937,1937.2,1937.1,9.13999]
[1742353123149,2.16863937,1937.2,1937.1,14.30234]
[1742353123452,2.93813937,1937.4,1937.1,8.16235]
[1742353123778,2.16863937,1937.2,1937.1,8.16235]
[1742353124781,2.16863937,1937.3,1937.1,8.16221]
[1742353125081,2.16863937,1937.3,1937.2,5.16208]
[1742353127171,3.61184411,1937.4,1937.2,5.16208]
[1742353127389,3.61184411,1937.4,1937.3,3.516208]
[1742353128053,0.7695,1937.3,1937.1,7.844]
[1742353128308,3.61184411,1937.2,1937.1,7.844]
[1742353129004,3.61184411,1937.2,1937.1,3.0]
[1742353129876,8.77392411,1937.2,1937.1,3.0]
[1742353131277,3.61184411,1937.2,1937.1,3.0]
[1742353133803,8.77392411,1937.2,1936.9,3.0]
[1742353134012,3.61184411,1937.0,1936.8,9.24670151]
[1742353134166,3.61184411,1937.0,1936.8,14.40985151]
[1742353134508,3.61184411,1937.0,1936.8,9.24670151]
[1742353135707,3.61184411,1937.0,1936.8,8.86262248]
[1742353136404,3.61184411,1936.9,1936.8,8.86262248]
[1742353136610,3.61184411,1936.9,1936.8,7.844]
[1742353138334,3.61184411,1937.1,1936.9,8.16286]
[1742353139190,3.61184411,1937.1,1936.9,3.0]
[1742353139601,4.38784411,1937.3,1936.9,8.1627]
[1742353139839,3.61184411,1937.2,1937.1,3.0]
[1742353140012,3.61184411,1937.2,1936.9,3.0]
[1742353140336,3.61184411,1937.1,1936.9,8.16277]
[1742353140540,3.61184411,1937.0,1936.9,8.16277]
[1742353141200,3.61184411,1937.1,1936.9,8.16277]
[1742353141391,3.61184411,1937.2,1937.1,3.0]
[1742353143220,3.61184411,1937.2,1937.1,3.14144743]
[1742353144419,0.06452852,1937.3,1937.2,8.16208]
[1742353144621,3.61184411,1938.0,1937.6,5.16091]
[1742353144806,8.83633887,1938.0,1937.6,4.844]
[1742353145001,3.61184411,1938.0,1937.7,0.14030398]
[1742353145314,3.61184411,1938.0,1937.6,4.844]
[1742353145315,3.61184411,1937.8,1937.6,4.844]
[1742353145526,4.38784411,1937.7,1937.6,4.844]
[1742353146989,3.61184411,1937.8,1937.6,4.844]
[1742353148188,3.61184411,1937.8,1937.6,10.00498]
[1742353150710,0.776,1937.9,1937.7,5.1607]
[1742353151210,0.7927,1938.2,1937.8,5.16049]
[1742353151519,3.61184411,1938.0,1937.8,5.16035]
[1742353152198,3.61184411,1938.0,1937.8,10.32072]
[1742353152399,3.61184411,1938.0,1937.8,10.32071]
[1742353152606,3.61184411,1938.0,1937.8,5.16035]
[1742353153191,3.61184411,1938.0,1937.8,10.32073]
[1742353153393,0.0416838,1938.7,1938.0,0.1791]
[1742353153587,3.61184411,1938.4,1938.1,6.13999]
[1742353153795,4.40454411,1938.2,1938.1,7.842]
[1742353153992,0.7927,1938.2,1938.1,13.00169]
[1742353154219,0.7927,1938.2,1938.1,7.842]
[1742353154521,5.15895,1938.4,1938.1,7.842]
[1742353154721,4.40454411,1938.5,1938.2,8.15942]
[1742353155419,3.61184411,1938.4,1938.2,8.15942]
[1742353155890,0.0416838,1938.7,1938.6,5.15836]
[1742353156092,0.0416838,1938.7,1938.6,7.878]
[1742353157291,0.10616221,1938.7,1938.5,3.1791]
[1742353157493,0.10616221,1938.7,1938.5,8.33757]
[1742353157494,0.0416838,1938.7,1938.5,8.33757]
[1742353157799,0.0416838,1938.7,1938.5,8.15847]
[1742353158106,3.65352791,1938.7,1938.5,8.15847]
[1742353158321,3.65352791,1938.7,1938.6,0.13692585]
[1742353158487,0.0416838,1938.7,1938.6,0.13692585]
[1742353160120,0.0416838,1938.7,1938.6,5.29528585]
[1742353160330,0.0416838,1938.7,1938.6,9.14875369]
[1742353160835,0.0416838,1938.7,1938.6,3.99039369]
[1742353161034,3.65352791,1938.7,1938.6,3.13692585]
[1742353161539,3.65352791,1938.7,1938.6,0.13692585]
[1742353161540,8.81161791,1938.7,1938.6,0.13692585]
[1742353161835,8.81161791,1938.7,1938.4,7.888]
[1742353162015,3.61184411,1938.6,1938.5,0.13718348]
[1742353163537,8.77020411,1938.6,1938.5,0.13718348]
[1742353164435,3.61184411,1938.6,1938.5,0.13718348]
[1742353165739,3.65352791,1938.7,1938.5,0.13718348]
[1742353166041,3.61184411,1938.6,1938.5,0.13718348]
[1742353168038,8.77020411,1938.6,1938.5,0.13718348]
[1742353168450,3.61184411,1938.6,1938.5,0.13718348]
[1742353170155,0.0416838,1938.7,1938.5,8.29580348]
[1742353171151,3.65352791,1938.7,1938.5,3.13718348]
[1742353172158,3.61184411,1938.6,1938.5,3.13718348]
[1742353176320,8.77020411,1938.6,1938.5,3.13718348]
[1742353176746,3.61184411,1938.6,1938.5,3.13718348]
[1742353177156,8.77020411,1938.6,1938.5,3.13718348]
[1742353179255,10.1672139,1938.6,1938.5,3.13718348]
[1742353182665,10.1672139,1938.6,1938.5,0.13718348]
[1742353182854,10.1672139,1938.6,1938.3,3.0]
[1742353183168,3.61184411,1938.5,1938.4,0.13724512]
[1742353183971,8.77046411,1938.5,1938.4,0.13724512]
[1742353189434,9.54846411,1938.5,1938.4,0.13724512]
[1742353189967,5.15954,1938.2,1937.9,21.922]
[1742353190166,3.61184411,1938.2,1937.9,22.95493134]
[1742353190368,13.93048411,1938.3,1937.9,22.95493134]
[1742353190538,8.77110411,1938.3,1938.0,3.0]
[1742353190738,13.93050411,1938.3,1938.0,3.0]
[1742353191864,8.77110411,1938.3,1938.0,3.0]
[1742353192670,8.77110411,1938.3,1938.1,0.48390576]
[1742353192965,3.61184411,1938.2,1938.1,0.48390576]
[1742353194039,3.61184411,1938.2,1938.0,3.0]
[1742353199579,5.15926,1938.3,1938.0,3.0]
[1742353199784,8.77110411,1938.3,1938.0,3.1791]
[1742353200284,8.74950411,1938.3,1938.0,3.1791]
[1742353200764,13.92906411,1938.6,1938.3,0.1791]
[1742353200957,3.61184411,1938.5,1938.3,0.1791]
[1742353202082,3.61184411,1938.5,1938.2,5.1593]
[1742353202287,3.61184411,1938.3,1938.1,3.56559103]
[1742353203207,8.77108411,1938.3,1938.1,3.38649103]
[1742353203785,13.93046411,1938.3,1938.1,3.38649103]
[1742353204271,8.77108411,1938.3,1938.1,3.0]
[1742353204467,3.61184411,1938.3,1938.1,3.913999]
[1742353204671,3.61184411,1938.3,1938.1,4.093099]
[1742353204867,5.15891,1938.4,1938.1,4.093099]
[1742353205073,3.61184411,1938.3,1938.1,9.252729]
[1742353205366,3.61184411,1938.3,1938.1,4.093099]
[1742353205782,3.61184411,1938.3,1938.1,9.252589]
[1742353205986,3.61184411,1938.3,1938.2,0.9252589]
[1742353206169,3.61184411,1938.5,1938.2,0.9252589]
[1742353206490,3.61184411,1938.5,1938.2,6.0845789]
[1742353206701,8.81187791,1938.7,1938.4,0.1791]
[1742353207587,3.65352791,1938.7,1938.4,10.19697]
[1742353207789,3.65352791,1938.7,1938.4,11.12533394]
[1742353207996,3.65352791,1938.7,1938.4,5.96646394]
[1742353208165,3.65352791,1938.7,1938.5,5.15855]
[1742353208491,3.65352791,1938.7,1938.4,11.12529394]
[1742353209063,3.65352791,1938.7,1938.4,12.17607441]
[1742353210375,3.65352791,1938.7,1938.5,0.9252589]
[1742353210671,0.0416838,1938.7,1938.6,8.15836]